lending/lending_fUSD_20241212
["ID","MTS","AMOUNT","RATE_DAILY","PERIOD"]
[345086508,1733993437982,-913.77973291,0.00013584,2]
[345086509,1733993437992,-165.89,0.00013594,2]
[345086510,1733993438001,-1557.426,0.00013599,2]
[345086511,1733993438010,-179.3998385,0.00013599,2]
[345086512,1733993438019,-302.09,0.00013601,3]
[345086513,1733993438028,-250.0,0.00013607,2]
[345086514,1733993438037,-39.63358914,0.00013607,30]
[345086515,1733993438119,-115.36641086,0.00013607,30]
[345086516,1733993438129,-168.88,0.00013647,2]
[345086517,1733993438138,-2751.0,0.00013659,2]
[345086518,1733993438147,-1122.79,0.00013659,2]
[345086519,1733993438158,-250.0,0.00013664,2]
[345086520,1733993438167,-429.82,0.0001368,2]
[345086521,1733993438176,-260.68,0.00013684,2]
[345086522,1733993438186,-500.0,0.00013696,2]
[345086523,1733993438195,-64.57016914,0.00013696,2]
[345086524,1733993438214,-435.42983086,0.00013696,2]
[345086525,1733993438224,-500.0,0.00013696,2]
[345086526,1733993438233,-318.1754915,0.00013696,2]
[345086536,1733993438466,-181.8245085,0.00013696,2]
[345086537,1733993438476,-591.15201719,0.00013696,2]
[345086538,1733993438485,-500.0,0.00013696,2]
[345086539,1733993438494,-500.0,0.00013696,2]
[345086540,1733993438507,-342.3009125,0.00013696,2]
[345086541,1733993438518,-157.6990875,0.00013696,2]
[345086542,1733993438528,-465.59832822,0.00013696,2]
[345086543,1733993438537,-500.0,0.00013696,2]
[345086544,1733993438547,-500.0,0.00013696,2]
[345086545,1733993438556,-500.0,0.00013696,2]
[345086546,1733993438565,-500.0,0.00013696,2]
[345086547,1733993438575,-500.0,0.00013698,2]
[345086548,1733993438584,-500.0,0.00013698,2]
[345086549,1733993438593,-500.0,0.00013698,2]
[345086550,1733993438603,-500.0,0.00013698,2]
[345086551,1733993438612,-500.0,0.00013698,2]
[345086552,1733993438621,-456.660724,0.00013698,2]
[345086553,1733993438630,-500.0,0.00013698,2]
[345086554,1733993438639,-565.85,0.00013698,2]
[345086555,1733993438648,-271.77436839,0.00013698,2]
[345086556,1733993438660,-228.22563161,0.00013698,2]
[345086557,1733993438669,-500.0,0.00013698,2]
[345086558,1733993438679,-500.0,0.00013698,2]
[345086559,1733993438688,-500.0,0.00013698,2]
[345086560,1733993438697,-165.73931976,0.00013698,2]
[345086561,1733993438708,-334.26068024,0.00013698,2]
[345086562,1733993438718,-500.0,0.00013699,2]
[345086563,1733993438727,-327.29681741,0.00013699,2]
[345086564,1733993438739,-172.70318259,0.00013699,2]
[345086565,1733993438749,-500.0,0.00013699,2]
[345086566,1733993438758,-500.0,0.00013699,2]
[345086567,1733993438767,-800.0,0.00013699,2]
[345086568,1733993438777,-800.0,0.00013699,2]
[345086569,1733993438787,-800.0,0.00013699,2]
[345086570,1733993438797,-800.0,0.00013699,2]
[345086571,1733993438806,-800.0,0.00013699,2]
[345086572,1733993438816,-800.0,0.00013699,2]
[345086573,1733993438826,-800.0,0.00013699,2]
[345086574,1733993438835,-616.12,0.00013699,2]
[345086575,1733993438845,-800.0,0.00013699,2]
[345086576,1733993438855,-4000.0,0.00013699,2]
[345086577,1733993438865,-800.0,0.00013699,2]
[345086578,1733993438874,-800.0,0.00013699,2]
[345086579,1733993438884,-500.0,0.00013699,2]
[345086580,1733993438893,-800.0,0.00013699,2]
[345086581,1733993438907,-800.0,0.00013699,2]
[345086582,1733993438917,-151.06,0.00013705,2]
[345086583,1733993438926,-3643.87,0.00013707,2]
[345086584,1733993438936,-364.32,0.00013759,2]
[345086585,1733993438947,-194.81,0.00013759,2]
[345086586,1733993438956,-200.0,0.00013759,2]
[345086587,1733993438965,-3289.82,0.00013759,2]
[345086588,1733993438975,-500.0,0.00013789,2]
[345086589,1733993438985,-950.0,0.000138,2]
[345086590,1733993438995,-500.0,0.00013919,2]
[345086591,1733993439003,-500.0,0.00013919,2]
[345086592,1733993439013,-151.0,0.00013935,2]
[345086593,1733993439023,-603.44,0.00013973,2]
[345086594,1733993439031,-500.0,0.00014012,2]
[345086595,1733993439041,-2061.92,0.00014058,2]
[345086596,1733993439050,-1000.0,0.00014232,2]
[345086597,1733993439059,-2000.0,0.00014235,2]
[345086598,1733993439069,-500.0,0.00014235,2]
[345086599,1733993439078,-950.0,0.000143,2]
[345086600,1733993439087,-500.0,0.00014392,2]
[345086601,1733993439096,-700.0,0.00014392,2]
[345086602,1733993439106,-155.0,0.00014446,30]
[345086603,1733993439115,-500.0,0.00014458,2]
[345086604,1733993439125,-152.0,0.00014467,3]
[345086605,1733993439134,-500.0,0.00014681,2]
[345086606,1733993439143,-150.0,0.00014731,2]
[345086607,1733993439152,-950.0,0.000148,2]
[345086608,1733993439162,-214.3904149,0.000149,2]
[345086609,1733993439171,-214.3904149,0.000149,2]
[345086610,1733993439181,-500.0,0.00014904,2]
[345086611,1733993439190,-434.616,0.0001491,2]
[345086612,1733993439199,-500.0,0.0001494,2]
[345086613,1733993439208,-500.0,0.00014999,2]
[345086614,1733993439218,-500.0,0.00014999,2]
[345086615,1733993439228,-300.21988192,0.00015,5]
[345086616,1733993439239,-9781.13985178,0.00015,2]
[345086617,1733993439252,-285.86014822,0.00015,2]
[345086618,1733993439262,-800.0,0.00015014,2]
[345086619,1733993439271,-2000.0,0.00015054,2]
[345086620,1733993439281,-644.0,0.00015054,2]
[345086621,1733993439290,-500.0,0.00015054,2]
[345086622,1733993439300,-300.0,0.00015068,2]
[345086623,1733993439309,-500.0,0.00015127,2]
[345086624,1733993439319,-1000.0,0.00015282,2]
[345086625,1733993439328,-155.0,0.00015286,30]
[345086626,1733993439338,-950.0,0.000153,2]
[345086627,1733993439347,-500.0,0.0001535,2]
[345086628,1733993439356,-2000.0,0.00015399,2]
[345086629,1733993439367,-428.15146824,0.00015526,2]
[345086630,1733993439376,-583.16737,0.0001554,2]
[345086631,1733993439386,-150.0,0.00015546,2]
[345086632,1733993439395,-301.38,0.00015567,2]
[345086633,1733993439405,-300.78,0.00015567,2]
[345086634,1733993439414,-150.0,0.00015567,2]
[345086635,1733993439423,-1500.0,0.00015572,2]
[345086636,1733993439433,-2000.0,0.00015573,2]
[345086637,1733993439443,-500.0,0.00015573,2]
[345086638,1733993439453,-800.0,0.00015699,2]
[345086639,1733993439463,-2000.0,0.00015699,2]
[345086640,1733993439473,-2000.0,0.00015699,2]
[345086641,1733993439482,-500.0,0.00015699,2]
[345086642,1733993439493,-500.0,0.00015699,2]
[345086643,1733993439503,-500.0,0.00015699,2]
[345086644,1733993439513,-500.0,0.00015699,2]
[345086645,1733993439523,-500.0,0.00015699,2]
[345086646,1733993439533,-500.0,0.00015699,2]
[345086647,1733993439542,-500.0,0.00015699,2]
[345086648,1733993439552,-1750.15,0.00015699,2]
[345086649,1733993439561,-1842.4,0.00015699,2]
[345086650,1733993439571,-468.88631089,0.00015699,2]
[345086660,1733993443129,-31.11368911,0.00015699,2]
[345086661,1733993443138,-500.0,0.00015699,2]
[345086662,1733993443149,-1295.14,0.00015699,2]
[345086663,1733993443158,-500.0,0.00015699,2]
[345086664,1733993443167,-1690.59,0.00015699,2]
[345086665,1733993443176,-500.0,0.00015699,2]
[345086666,1733993443185,-407.18296147,0.00015699,2]
[345086667,1733993443194,-500.0,0.00015699,2]
[345086668,1733993443203,-500.0,0.00015699,2]
[345086669,1733993443212,-500.0,0.00015699,2]
[345086670,1733993443222,-500.0,0.00015699,2]
[345086671,1733993443231,-500.0,0.00015699,2]
[345086672,1733993443243,-500.0,0.00015699,2]
[345086673,1733993443252,-451.99241599,0.00015699,2]
[345086674,1733993443261,-997.61,0.00015699,2]
[345086675,1733993443270,-500.0,0.00015699,2]
[345086676,1733993443279,-200.07013443,0.00015699,2]
[345086677,1733993443289,-72634.06119973,0.000157,2]
[345086678,1733993443299,-20788.50225828,0.000157,2]
[345086679,1733993443315,-4040.0,0.000157,2]
[345086680,1733993443438,-1073.61473286,0.000157,2]
[345086681,1733993443459,-5129.7814855,0.000157,2]
[345086686,1733993445965,-1765.63,0.00015699,2]
[345086687,1733993445977,-23111.47752542,0.000157,2]
[345086688,1733993446021,-2996.61865781,0.000157,2]
[345086689,1733993446078,-6627.24259429,0.000157,2]
[345086690,1733993446304,-11833.02191662,0.000157,2]
[345086691,1733993446314,-200.0,0.000157,2]
[345086692,1733993446324,-296.26809502,0.00015754,5]
[345086693,1733993446334,-700.0,0.00015762,2]
[345086694,1733993446345,-194.81,0.00015795,2]
[345086695,1733993446359,-950.0,0.000158,3]
[345086697,1733993446371,-1778.31823277,0.000158,2]
[345086699,1733993446386,-57537.782715,0.000158,2]
[345086702,1733993446404,-3336.08952343,0.000158,2]
[345086704,1733993446415,-7064.9173029,0.00015888,2]
[345086708,1733993446438,-8429.11204635,0.00015888,2]
[345086710,1733993446449,-1683.07195365,0.00015893,7]
[345086712,1733993446461,-3543.28804635,0.00015893,7]
[345086714,1733993446472,-5226.36,0.00015893,7]
[345086715,1733993446483,-200.0,0.0001597,2]
[345086716,1733993446495,-8734.0688613,0.00015988,2]
[345086717,1733993446506,-151.06,0.00015989,2]
[345086718,1733993446517,-300.0,0.00016,7]
[345086719,1733993446527,-500.0,0.00016,2]
[345086720,1733993446539,-500.0,0.00016,2]
[345086721,1733993446550,-500.0,0.00016,2]
[345086722,1733993446561,-15000.0,0.00016,2]
[345086723,1733993446572,-10279.04017052,0.00016,3]
[345086724,1733993446582,-6944.00018136,0.00016,2]
[345086725,1733993446594,-5000.0,0.00016,2]
[345086726,1733993446604,-2000.0,0.00016,2]
[345086727,1733993446615,-2075.0,0.00016,2]
[345086728,1733993446627,-246.52763499,0.00016008,2]
[345086729,1733993446638,-2000.0,0.0001601,2]
[345086730,1733993446649,-3663.099066,0.0001602,2]
[345086731,1733993446660,-500.0,0.00016032,2]
[345086732,1733993446671,-9829.07187322,0.00016033,2]
[345086733,1733993446682,-583.16738,0.0001605,2]
[345086734,1733993446693,-500.0,0.00016054,2]
[345086735,1733993446703,-1727.0,0.00016054,2]
[345086736,1733993446714,-500.0,0.00016054,2]
[345086737,1733993446725,-1056.0,0.00016067,2]
[345086738,1733993446736,-9999.99,0.00016116,2]
[345086739,1733993446752,-155.0,0.00016125,30]
[345086740,1733993446763,-199.09,0.00016142,2]
[345086741,1733993446774,-2000.0,0.00016165,2]
[345086742,1733993446786,-5226.36,0.00016166,7]
[345086743,1733993446797,-5226.36,0.00016166,7]
[345086744,1733993446809,-299.121217,0.00016198,3]
[345086745,1733993446820,-500.12,0.00016222,2]
[345086746,1733993446831,-500.0,0.0001628,2]
[345086747,1733993446842,-950.0,0.000163,3]
[345086748,1733993446853,-800.0,0.00016301,2]
[345086749,1733993446863,-2061.92,0.00016321,2]
[345086750,1733993446874,-500.0,0.00016328,2]
[345086752,1733993446884,-1727.0,0.00016328,2]
[345086753,1733993446895,-500.0,0.00016328,2]
[345086754,1733993446914,-200.0,0.0001634,2]
[345086755,1733993446925,-975.06,0.00016389,2]
[345086756,1733993446936,-285.46,0.00016437,2]
[345086757,1733993446947,-500.0,0.00016437,2]
[345086758,1733993446958,-500.0,0.00016437,2]
[345086759,1733993446969,-500.0,0.00016437,2]
[345086760,1733993446980,-500.0,0.00016437,2]
[345086761,1733993446991,-500.0,0.00016437,2]
[345086762,1733993447002,-1750.15,0.00016437,2]
[345086763,1733993447013,-1295.14,0.00016437,2]
[345086764,1733993447025,-500.0,0.00016437,2]
[345086765,1733993447035,-1690.59,0.00016437,2]
[345086766,1733993447046,-500.0,0.00016437,2]
[345086767,1733993447057,-479.47945827,0.00016437,2]
[345086768,1733993447068,-500.0,0.00016437,2]
[345086769,1733993447079,-500.0,0.00016437,2]
[345086770,1733993447089,-500.0,0.00016437,2]
[345086771,1733993447099,-500.0,0.00016437,2]
[345086772,1733993447110,-500.0,0.00016437,2]
[345086773,1733993447121,-997.61,0.00016437,2]
[345086774,1733993447131,-391.4537897,0.00016437,2]
[345086775,1733993447142,-1765.63,0.00016437,2]
[345086776,1733993447155,-401.64,0.00016438,2]
[345086777,1733993447167,-401.64,0.00016438,2]
[345086778,1733993447178,-976.68,0.00016438,2]
[345086779,1733993447188,-976.68,0.00016438,2]
[345086780,1733993447198,-1000.0,0.00016438,2]
[345086781,1733993447209,-1003.0,0.00016438,2]
[345086782,1733993447219,-300.0,0.00016438,2]
[345086783,1733993447230,-397.0,0.00016438,2]
[345086784,1733993447241,-610.0,0.00016438,2]
[345086785,1733993447251,-1000.0,0.00016438,2]
[345086786,1733993447261,-1000.0,0.00016438,2]
[345086787,1733993447272,-1000.0,0.00016438,2]
[345086788,1733993447283,-1000.0,0.00016438,2]
[345086789,1733993447293,-1000.0,0.00016438,2]
[345086790,1733993447303,-1000.0,0.00016438,2]
[345086791,1733993447313,-1000.0,0.00016438,2]
[345086792,1733993447324,-1000.0,0.00016438,2]
[345086793,1733993447334,-1000.0,0.00016438,2]
[345086794,1733993447344,-1000.0,0.00016438,2]
[345086795,1733993447354,-1000.0,0.00016438,2]
[345086796,1733993447364,-1000.0,0.00016438,2]
[345086797,1733993447374,-1000.0,0.00016438,2]
[345086798,1733993447384,-240.0,0.00016438,2]
[345086799,1733993447394,-1000.0,0.00016438,2]
[345086800,1733993447405,-1000.0,0.00016438,2]
[345086801,1733993447415,-1000.0,0.00016438,2]
[345086802,1733993447426,-1000.0,0.00016438,2]
[345086803,1733993447436,-1000.0,0.00016438,2]
[345086804,1733993447446,-1000.0,0.00016438,2]
[345086805,1733993447456,-1000.0,0.00016438,2]
[345086806,1733993447466,-1000.0,0.00016438,2]
[345086807,1733993447477,-1000.0,0.00016438,2]
[345086808,1733993447487,-1000.0,0.00016438,2]
[345086809,1733993447498,-1000.0,0.00016438,2]
[345086810,1733993447508,-1000.0,0.00016438,2]
[345086811,1733993447518,-1000.0,0.00016438,2]
[345086812,1733993447528,-922.0,0.00016438,2]
[345086813,1733993447539,-5226.36,0.00016439,7]
[345086814,1733993447550,-5226.36,0.00016439,7]
[345086815,1733993447560,-300.121217,0.00016498,2]
[345086816,1733993447570,-692.0,0.000165,2]
[345086817,1733993447581,-421.73106653,0.000165,2]
[345086818,1733993447592,-5187.0,0.000165,2]
[345086819,1733993447602,-150.0,0.000165,2]
[345086820,1733993447612,-150.0,0.00016584,2]
[345086821,1733993447622,-150.0,0.00016584,2]
[345086822,1733993447633,-262.83383418,0.00016584,2]
[345086823,1733993447643,-169.12875775,0.00016584,2]
[345086824,1733993447653,-150.0,0.00016584,2]
[345086825,1733993447663,-150.0,0.00016584,2]
[345086826,1733993447674,-215.43006958,0.00016584,2]
[345086827,1733993447684,-150.0,0.00016584,2]
[345086828,1733993447694,-274.17981197,0.00016584,2]
[345086829,1733993447704,-150.0,0.00016584,2]
[345086830,1733993447715,-150.0,0.00016584,2]
[345086831,1733993447725,-150.0,0.00016585,2]
[345086832,1733993447735,-150.0,0.00016585,2]
[345086833,1733993447748,-150.0,0.00016586,2]
[345086834,1733993447758,-150.0,0.00016586,2]
[345086835,1733993447768,-150.0,0.00016587,2]
[345086836,1733993447778,-150.0,0.00016587,2]
[345086837,1733993447788,-150.0,0.00016587,2]
[345086838,1733993447799,-150.0,0.00016588,2]
[345086839,1733993447814,-150.0,0.00016588,2]
[345086840,1733993447824,-150.0,0.00016588,2]
[345086841,1733993447834,-150.0,0.00016589,2]
[345086842,1733993447844,-150.0,0.0001659,2]
[345086843,1733993447854,-150.0,0.0001659,2]
[345086844,1733993447863,-150.0,0.0001659,2]
[345086845,1733993447873,-150.0,0.0001659,2]
[345086846,1733993447883,-150.0,0.00016591,2]
[345086847,1733993447893,-150.0,0.00016591,2]
[345086848,1733993447906,-150.0,0.00016591,2]
[345086849,1733993448185,-150.0,0.00016592,2]
[345086850,1733993448202,-150.0,0.00016592,2]
[345086851,1733993448212,-150.0,0.00016593,2]
[345086852,1733993448222,-150.0,0.00016594,2]
[345086853,1733993448231,-150.0,0.00016594,2]
[345086854,1733993448242,-150.0,0.00016594,2]
[345086855,1733993448251,-150.0,0.00016594,2]
[345086856,1733993448261,-150.0,0.00016595,2]
[345086857,1733993448271,-150.0,0.00016595,2]
[345086858,1733993448280,-150.0,0.00016596,2]
[345086859,1733993448289,-150.0,0.00016596,2]
[345086860,1733993448299,-150.0,0.00016596,2]
[345086861,1733993448308,-150.0,0.00016596,2]
[345086862,1733993448319,-150.0,0.00016597,2]
[345086863,1733993448328,-150.0,0.00016597,2]
[345086864,1733993448338,-150.0,0.00016597,2]
[345086865,1733993448347,-150.0,0.00016598,2]
[345086866,1733993448357,-150.0,0.00016598,2]
[345086867,1733993448366,-150.0,0.00016598,2]
[345086868,1733993448375,-150.0,0.00016599,2]
[345086869,1733993448385,-160.62123567,0.00016599,2]
[345086870,1733993448395,-265.15896026,0.00016599,2]
[345086871,1733993448405,-150.0,0.000166,2]
[345086872,1733993448414,-150.0,0.000166,2]
[345086873,1733993448423,-4874.56,0.000166,31]
[345086874,1733993448433,-4874.56,0.000166,31]
[345086875,1733993448443,-4874.56,0.000166,31]
[345086876,1733993448451,-4874.56,0.000166,31]
[345086877,1733993448460,-4874.56,0.000166,31]
[345086878,1733993448470,-4874.56,0.000166,31]
[345086879,1733993448479,-4874.56,0.000166,31]
[345086880,1733993448492,-4874.56,0.000166,31]
[345086881,1733993448502,-4874.56,0.000166,31]
[345086882,1733993448511,-4874.56,0.000166,31]
[345086883,1733993448521,-4874.56,0.000166,31]
[345086884,1733993448530,-4874.56,0.000166,31]
[345086885,1733993448540,-4874.56,0.000166,31]
[345086886,1733993448549,-4874.56,0.000166,31]
[345086887,1733993448558,-4874.56,0.000166,31]
[345086888,1733993448568,-4874.56,0.000166,31]
[345086889,1733993448577,-150.0,0.000166,2]
[345086890,1733993448587,-150.0,0.00016601,2]
[345086891,1733993448596,-150.0,0.00016601,2]
[345086892,1733993448606,-150.0,0.00016601,2]
[345086893,1733993448615,-500.0,0.00016602,2]
[345086894,1733993448627,-1727.0,0.00016602,2]
[345086895,1733993448637,-500.0,0.00016602,2]
[345086896,1733993448646,-150.0,0.00016602,2]
[345086897,1733993448656,-500.0,0.00016602,2]
[345086898,1733993448665,-150.0,0.00016603,2]
[345086899,1733993448675,-150.0,0.00016603,2]
[345086900,1733993448684,-150.0,0.00016603,2]
[345086901,1733993448693,-150.0,0.00016603,2]
[345086902,1733993448703,-150.0,0.00016604,2]
[345086903,1733993448712,-150.0,0.00016604,2]
[345086904,1733993448721,-150.0,0.00016604,2]
[345086905,1733993448730,-150.0,0.00016605,2]
[345086906,1733993448741,-150.0,0.00016605,2]
[345086907,1733993448751,-150.0,0.00016605,2]
[345086908,1733993448761,-150.0,0.00016606,2]
[345086909,1733993448770,-150.0,0.00016607,2]
[345086910,1733993448779,-150.0,0.00016607,2]
[345086911,1733993448789,-150.0,0.00016607,2]
[345086912,1733993448800,-150.0,0.00016608,2]
[345086913,1733993448809,-150.0,0.00016608,2]
[345086914,1733993448818,-150.0,0.00016608,2]
[345086915,1733993448827,-150.0,0.00016609,2]
[345086916,1733993448837,-150.0,0.00016609,2]
[345086917,1733993448846,-150.0,0.00016609,2]
[345086918,1733993448856,-150.0,0.00016609,2]
[345086919,1733993448865,-150.0,0.0001661,2]
[345086920,1733993448875,-150.0,0.0001661,2]
[345086921,1733993448884,-150.0,0.00016611,2]
[345086922,1733993448894,-150.0,0.00016611,2]
[345086923,1733993448905,-150.0,0.00016611,2]
[345086924,1733993448915,-150.0,0.00016611,2]
[345086925,1733993448924,-150.0,0.00016612,2]
[345086926,1733993448933,-150.0,0.00016613,2]
[345086927,1733993448943,-150.0,0.00016613,2]
[345086928,1733993448953,-150.0,0.00016614,2]
[345086929,1733993448962,-150.0,0.00016614,2]
[345086930,1733993448971,-150.0,0.00016614,2]
[345086931,1733993448981,-150.0,0.00016615,2]
[345086932,1733993448991,-150.0,0.00016615,2]
[345086933,1733993449001,-150.0,0.00016615,2]
[345086934,1733993449010,-150.0,0.00016615,2]
[345086935,1733993449019,-150.0,0.00016616,2]
[345086936,1733993449029,-150.0,0.00016617,2]
[345086937,1733993449038,-150.0,0.00016617,2]
[345086938,1733993449048,-150.0,0.00016617,2]
[345086939,1733993449058,-150.0,0.00016618,2]
[345086940,1733993449068,-150.0,0.00016618,2]
[345086941,1733993449077,-150.0,0.00016618,2]
[345086942,1733993449087,-150.0,0.00016619,2]
[345086943,1733993449097,-150.0,0.00016619,2]
[345086944,1733993449107,-150.0,0.0001662,2]
[345086945,1733993449117,-150.0,0.0001662,2]
[345086946,1733993449127,-150.0,0.00016621,2]
[345086947,1733993449136,-150.0,0.00016621,2]
[345086948,1733993449146,-150.0,0.00016621,2]
[345086949,1733993449155,-150.0,0.00016621,2]
[345086950,1733993449164,-150.0,0.00016621,2]
[345086951,1733993449174,-150.0,0.00016621,2]
[345086952,1733993449183,-150.0,0.00016622,2]
[345086953,1733993449193,-150.0,0.00016622,2]
[345086954,1733993449202,-150.0,0.00016623,2]
[345086955,1733993449211,-150.0,0.00016623,2]
[345086956,1733993449221,-150.0,0.00016624,2]
[345086957,1733993449230,-150.0,0.00016624,2]
[345086958,1733993449240,-150.0,0.00016624,2]
[345086959,1733993449249,-150.0,0.00016625,2]
[345086960,1733993449259,-150.0,0.00016625,2]
[345086961,1733993449269,-150.0,0.00016625,2]
[345086962,1733993449277,-150.0,0.00016626,2]
[345086963,1733993449286,-150.0,0.00016627,2]
[345086964,1733993449295,-150.0,0.00016627,2]
[345086965,1733993449305,-150.0,0.00016627,2]
[345086966,1733993449314,-150.0,0.00016628,2]
[345086967,1733993449323,-150.0,0.00016628,2]
[345086968,1733993449332,-150.0,0.00016628,2]
[345086969,1733993449341,-150.0,0.00016629,2]
[345086970,1733993449351,-150.0,0.00016629,2]
[345086971,1733993449360,-150.0,0.0001663,2]
[345086972,1733993449369,-150.0,0.00016631,2]
[345086973,1733993449379,-150.0,0.00016631,2]
[345086974,1733993449388,-150.0,0.00016631,2]
[345086975,1733993449398,-150.0,0.00016631,2]
[345086976,1733993449407,-150.0,0.00016632,2]
[345086977,1733993449417,-150.0,0.00016632,2]
[345086978,1733993449426,-150.0,0.00016633,2]
[345086979,1733993449436,-150.0,0.00016633,2]
[345086980,1733993449446,-150.0,0.00016633,2]
[345086981,1733993449455,-150.0,0.00016634,2]
[345086982,1733993449464,-150.0,0.00016634,2]
[345086983,1733993449473,-150.0,0.00016634,2]
[345086984,1733993449483,-150.0,0.00016635,2]
[345086985,1733993449493,-150.0,0.00016635,2]
[345086986,1733993449502,-150.0,0.00016635,2]
[345086987,1733993449511,-150.0,0.00016636,2]
[345086988,1733993449521,-150.0,0.00016637,2]
[345086989,1733993449530,-150.0,0.00016637,2]
[345086990,1733993449540,-150.0,0.00016637,2]
[345086991,1733993449549,-150.0,0.00016638,2]
[345086992,1733993449558,-150.0,0.00016638,2]
[345086993,1733993449567,-150.0,0.00016638,2]
[345086994,1733993449576,-150.0,0.00016639,2]
[345086995,1733993449585,-150.0,0.0001664,2]
[345086996,1733993449594,-150.0,0.0001664,2]
[345086997,1733993449604,-150.0,0.0001664,2]
[345086998,1733993449613,-150.0,0.00016641,2]
[345086999,1733993449622,-150.0,0.00016641,2]
[345087000,1733993449632,-150.0,0.00016641,2]
[345087001,1733993449641,-150.0,0.00016642,2]
[345087002,1733993449651,-150.0,0.00016642,2]
[345087003,1733993449660,-150.0,0.00016642,2]
[345087004,1733993449669,-150.0,0.00016643,2]
[345087005,1733993449679,-150.0,0.00016644,2]
[345087006,1733993449687,-150.0,0.00016644,2]
[345087007,1733993449696,-150.0,0.00016644,2]
[345087008,1733993449706,-150.0,0.00016645,2]
[345087009,1733993449715,-150.0,0.00016645,2]
[345087010,1733993449724,-150.0,0.00016645,2]
[345087011,1733993449734,-150.0,0.00016646,2]
[345087012,1733993449745,-150.0,0.00016646,2]
[345087013,1733993449758,-150.0,0.00016646,2]
[345087014,1733993449767,-150.0,0.00016647,2]
[345087015,1733993449777,-150.0,0.00016647,2]
[345087016,1733993449786,-150.0,0.00016648,2]
[345087017,1733993449795,-150.0,0.00016648,2]
[345087018,1733993449805,-150.0,0.00016648,2]
[345087019,1733993449814,-150.0,0.00016648,2]
[345087020,1733993449823,-150.0,0.00016649,2]
[345087021,1733993449832,-150.0,0.0001665,2]
[345087022,1733993449841,-150.0,0.0001665,2]
[345087023,1733993449851,-150.0,0.00016651,2]
[345087024,1733993449860,-150.0,0.00016651,2]
[345087025,1733993449869,-150.0,0.00016651,2]
[345087026,1733993449878,-150.0,0.00016652,2]
[345087027,1733993449887,-150.0,0.00016652,2]
[345087028,1733993449896,-150.0,0.00016652,2]
[345087029,1733993449909,-150.0,0.00016653,2]
[345087030,1733993449918,-150.0,0.00016654,2]
[345087031,1733993449927,-150.0,0.00016654,2]
[345087032,1733993449936,-150.0,0.00016654,2]
[345087033,1733993449947,-150.0,0.00016655,2]
[345087034,1733993449957,-150.0,0.00016655,2]
[345087035,1733993449966,-150.0,0.00016655,2]
[345087036,1733993449975,-150.0,0.00016656,2]
[345087037,1733993449987,-150.0,0.00016656,2]
[345087038,1733993449999,-150.0,0.00016657,2]
[345087039,1733993450008,-150.0,0.00016657,2]
[345087040,1733993450017,-1323.91,0.00016658,30]
[345087041,1733993450026,-162.10789141,0.00016658,2]